fUSD/lending_fUSD_20260613
["ID","MTS","AMOUNT","RATE_DAILY","PERIOD"]
[424960771,1781356270000,-177.54216715,0.000202,2]
[424960772,1781356270000,-250.0,0.00020274,2]
[424960778,1781356270000,-250.0,0.00020494,2]
[424960773,1781356270000,-250.0,0.00020274,2]
[424960775,1781356270000,-1410.0,0.00020381,2]
[424960777,1781356270000,-250.0,0.00020494,2]
[424960780,1781356270000,-250.0,0.00020494,2]
[424960779,1781356270000,-250.0,0.00020494,2]
[424960781,1781356270000,-250.0,0.00020494,2]
[424960783,1781356270000,-250.0,0.00020494,2]
[424960761,1781356270000,-200.0,0.0002,2]
[424960776,1781356270000,-177.54216715,0.000204,2]
[424960762,1781356270000,-360.0,0.0002,2]
[424960755,1781356270000,-2590.0,0.0002,2]
[424960764,1781356270000,-639.14495753,0.0002,2]
[424960784,1781356270000,-250.0,0.00020494,2]
[424960745,1781356270000,-892.0,0.0002,2]
[424960744,1781356270000,-400.0,0.0002,2]
[424960746,1781356270000,-231.0,0.0002,2]
[424960747,1781356270000,-541.0,0.0002,2]
[424960750,1781356270000,-365.0,0.0002,2]
[424960748,1781356270000,-299.0,0.0002,2]
[424960756,1781356270000,-195.042,0.0002,2]
[424960763,1781356270000,-500.0,0.0002,2]
[424960754,1781356270000,-923.0,0.0002,2]
[424960752,1781356270000,-262.066274,0.0002,2]
[424960749,1781356270000,-169.0,0.0002,2]
[424960753,1781356270000,-200.0,0.0002,10]
[424960758,1781356270000,-156.22114198,0.0002,20]
[424960757,1781356270000,-274.0,0.0002,2]
[424960760,1781356270000,-10000.0,0.0002,2]
[424960765,1781356270000,-350.0,0.00020066,2]
[424960759,1781356270000,-1011.0,0.0002,2]
[424960751,1781356270000,-284.0,0.0002,2]
[424960787,1781356270000,-196.05643121,0.00020499,2]
[424960794,1781356270000,-2405.55389863,0.00020499,2]
[424960788,1781356270000,-151.0,0.00020499,2]
[424960810,1781356270000,-163.0,0.0002088,2]
[424960809,1781356270000,-165.0,0.0002088,2]
[424960811,1781356270000,-250.0,0.00020935,2]
[424960812,1781356270000,-250.0,0.00020935,2]
[424960815,1781356270000,-250.0,0.00020935,2]
[424960813,1781356270000,-250.0,0.00020935,2]
[424960816,1781356270000,-250.0,0.00020935,2]
[424960814,1781356270000,-250.0,0.00020935,2]
[424960808,1781356270000,-164.0,0.00020821,2]
[424960817,1781356270000,-213.0,0.00021,2]
[424960820,1781356270000,-160.0,0.00021,7]
[424960822,1781356270000,-1943.828552,0.00021,2]
[424960821,1781356270000,-1175.47375679,0.00021,2]
[424960819,1781356270000,-1238.90576151,0.00021,7]
[424960823,1781356270000,-10671.94898218,0.00021,2]
[424960825,1781356270000,-2113.61,0.00021,2]
[424960826,1781356270000,-1087.53579209,0.00021,2]
[424960782,1781356270000,-250.0,0.00020494,2]
[424960818,1781356270000,-300.0,0.00021,2]
[424960802,1781356270000,-250.0,0.00020715,2]
[424960824,1781356270000,-61008.91900836,0.00021,2]
[424960806,1781356270000,-500.0,0.00020754,7]
[424960804,1781356270000,-250.0,0.00020715,2]
[424960786,1781356270000,-160.13511027,0.00020499,2]
[424960789,1781356270000,-284.01862642,0.00020499,2]
[424960792,1781356270000,-153.05655402,0.00020499,2]
[424960790,1781356270000,-151.0,0.00020499,2]
[424960827,1781356270000,-231.0,0.00021,2]
[424960798,1781356270000,-639.26,0.000206,2]
[424960797,1781356270000,-177.54216715,0.000206,2]
[424960795,1781356270000,-2110.0,0.000205,2]
[424960785,1781356270000,-200.0,0.00020499,2]
[424960791,1781356270000,-242.15909246,0.00020499,2]
[424960799,1781356270000,-250.0,0.00020715,2]
[424960796,1781356270000,-235.78746115,0.00020548,2]
[424960800,1781356270000,-250.0,0.00020715,2]
[424960801,1781356270000,-250.0,0.00020715,2]
[424960803,1781356270000,-250.0,0.00020715,2]
[424960807,1781356270000,-501.0,0.00020756,4]
[424960793,1781356270000,-177.26762146,0.00020499,2]
[424960805,1781356270000,-250.0,0.00020715,2]
[424960851,1781356271000,-151.0,0.00021046,2]
[424960848,1781356271000,-151.0,0.00021046,2]
[424960845,1781356271000,-225.18697532,0.00021045,2]
[424960846,1781356271000,-599.60298507,0.00021046,2]
[424960850,1781356271000,-160.13511033,0.00021046,2]
[424960852,1781356271000,-284.01862642,0.00021046,2]
[424960853,1781356271000,-151.0,0.00021046,2]
[424960856,1781356271000,-2494.55939288,0.00021047,2]
[424960855,1781356271000,-153.05655402,0.00021046,2]
[424960858,1781356271000,-1821.2352016,0.00021088,2]
[424960857,1781356271000,-1087.53579209,0.00021051,2]
[424960859,1781356271000,-342.3508395,0.00021088,2]
[424960861,1781356271000,-1087.53579209,0.00021154,2]
[424960849,1781356271000,-200.0,0.00021046,2]
[424960864,1781356271000,-250.0,0.00021155,2]
[424960854,1781356271000,-251.11897888,0.00021046,2]
[424960847,1781356271000,-747.80937859,0.00021046,2]
[424960836,1781356271000,-1011.0,0.00021,2]
[424960838,1781356271000,-6111.0,0.00021,2]
[424960863,1781356271000,-250.0,0.00021155,2]
[424960828,1781356271000,-541.0,0.00021,2]
[424960829,1781356271000,-299.0,0.00021,2]
[424960830,1781356271000,-169.0,0.00021,2]
[424960832,1781356271000,-284.0,0.00021,2]
[424960831,1781356271000,-365.0,0.00021,2]
[424960834,1781356271000,-2590.0,0.00021,2]
[424960833,1781356271000,-923.0,0.00021,2]
[424960835,1781356271000,-274.0,0.00021,2]
[424960837,1781356271000,-15000.0,0.00021,2]
[424960840,1781356271000,-6111.0,0.00021,2]
[424960842,1781356271000,-360.0,0.00021,2]
[424960843,1781356271000,-200.0,0.00021,2]
[424960839,1781356271000,-15000.0,0.00021,2]
[424960841,1781356271000,-150.0,0.00021,2]
[424960844,1781356271000,-482.2,0.00021007,2]
[424960862,1781356271000,-250.0,0.00021155,2]
[424960868,1781356271000,-1087.53579209,0.00021205,2]
[424960860,1781356271000,-1087.53579209,0.00021103,2]
[424960887,1781356271000,-326.52297851,0.00021498,2]
[424960888,1781356271000,-285.45799286,0.00021513,2]
[424960884,1781356271000,-200.0,0.00021422,2]
[424960886,1781356271000,-1087.53579209,0.00021462,7]
[424960890,1781356271000,-307.12475423,0.00021513,2]
[424960891,1781356271000,-1087.53579209,0.00021513,7]
[424960892,1781356271000,-1087.53579209,0.00021565,7]
[424960896,1781356271000,-151.0,0.00021595,2]
[424960893,1781356271000,-200.0,0.00021595,2]
[424960894,1781356271000,-151.0,0.00021595,2]
[424960895,1781356271000,-284.01862642,0.00021595,2]
[424960897,1781356271000,-260.4103811,0.00021595,2]
[424960866,1781356271000,-250.0,0.00021155,2]
[424960898,1781356271000,-153.05655402,0.00021595,2]
[424960899,1781356271000,-2586.85809042,0.00021595,2]
[424960885,1781356271000,-501.0,0.00021444,5]
[424960889,1781356271000,-174.91707852,0.00021513,2]
[424960900,1781356271000,-250.0,0.00021596,2]
[424960877,1781356271000,-227.58725989,0.0002137,2]
[424960883,1781356271000,-1087.53579209,0.00021411,7]
[424960865,1781356271000,-250.0,0.00021155,2]
[424960872,1781356271000,-170.42,0.00021268,7]
[424960871,1781356271000,-1087.53579209,0.00021257,2]
[424960873,1781356271000,-1087.53579209,0.00021308,2]
[424960874,1781356271000,-1087.53579209,0.00021359,7]
[424960869,1781356271000,-332.14,0.00021205,2]
[424960867,1781356271000,-350.0,0.00021199,3]
[424960875,1781356271000,-163.26148926,0.00021369,2]
[424960880,1781356271000,-250.0,0.00021376,2]
[424960878,1781356271000,-290.66031845,0.0002137,2]
[424960882,1781356271000,-250.0,0.00021376,2]
[424960879,1781356271000,-250.0,0.00021376,2]
[424960876,1781356271000,-326.52297851,0.0002137,2]
[424960870,1781356271000,-200.0,0.0002121,2]
[424960881,1781356271000,-250.0,0.00021376,2]
[424960916,1781356272000,-639.26,0.000218,2]
[424960919,1781356272000,-411.12769919,0.00021821,2]
[424960921,1781356272000,-644.09,0.00021828,2]
[424960920,1781356272000,-1087.53579209,0.00021821,7]
[424960922,1781356272000,-573.37,0.00021829,2]
[424960926,1781356272000,-326.52297851,0.00021884,7]
[424960925,1781356272000,-1087.53579209,0.00021873,7]
[424960923,1781356272000,-396.1,0.00021829,2]
[424960924,1781356272000,-200.0,0.00021853,2]
[424960928,1781356272000,-500.0,0.00021918,2]
[424960931,1781356272000,-500.0,0.00021918,2]
[424960918,1781356272000,-250.0,0.00021817,2]
[424960933,1781356272000,-500.0,0.00021918,2]
[424960927,1781356272000,-307.12475423,0.00021901,7]
[424960917,1781356272000,-250.0,0.00021817,2]
[424960906,1781356272000,-307.12475423,0.00021643,2]
[424960914,1781356272000,-285.45799286,0.00021772,7]
[424960913,1781356272000,-1087.53579209,0.0002177,7]
[424960912,1781356272000,-326.52297851,0.00021755,7]
[424960911,1781356272000,-1087.53579209,0.00021719,7]
[424960910,1781356272000,-150.20066893,0.00021689,2]
[424960909,1781356272000,-1087.53579209,0.00021667,7]
[424960907,1781356272000,-250.99703325,0.00021653,2]
[424960905,1781356272000,-200.0,0.00021636,2]
[424960908,1781356272000,-200.41906843,0.00021653,2]
[424960904,1781356272000,-326.52297851,0.00021627,7]
[424960903,1781356272000,-1087.53579209,0.00021616,7]
[424960902,1781356272000,-250.0,0.00021596,2]
[424960901,1781356272000,-250.0,0.00021596,2]
[424960929,1781356272000,-500.0,0.00021918,2]
[424960915,1781356272000,-307.12475423,0.00021772,7]
[424960930,1781356272000,-500.0,0.00021918,2]
[424960965,1781356272000,-150.0,0.00021918,2]
[424960936,1781356272000,-500.0,0.00021918,2]
[424960932,1781356272000,-500.0,0.00021918,2]
[424960962,1781356272000,-500.0,0.00021918,2]
[424960964,1781356272000,-5000.0,0.00021918,2]
[424960963,1781356272000,-556.0,0.00021918,2]
[424960960,1781356272000,-572.0,0.00021918,2]
[424960953,1781356272000,-500.0,0.00021918,2]
[424960958,1781356272000,-500.0,0.00021918,2]
[424960952,1781356272000,-500.0,0.00021918,2]
[424960955,1781356272000,-500.0,0.00021918,2]
[424960956,1781356272000,-500.0,0.00021918,2]
[424960954,1781356272000,-389.0,0.00021918,2]
[424960959,1781356272000,-500.0,0.00021918,2]
[424960957,1781356272000,-500.0,0.00021918,2]
[424960951,1781356272000,-500.0,0.00021918,2]
[424960950,1781356272000,-500.0,0.00021918,2]
[424960961,1781356272000,-500.0,0.00021918,2]
[424960949,1781356272000,-500.0,0.00021918,2]
[424960948,1781356272000,-500.0,0.00021918,2]
[424960938,1781356272000,-500.0,0.00021918,2]
[424960934,1781356272000,-500.0,0.00021918,2]
[424960935,1781356272000,-500.0,0.00021918,2]
[424960941,1781356272000,-500.0,0.00021918,2]
[424960939,1781356272000,-500.0,0.00021918,2]
[424960937,1781356272000,-500.0,0.00021918,2]
[424960942,1781356272000,-500.0,0.00021918,2]
[424960943,1781356272000,-500.0,0.00021918,2]
[424960940,1781356272000,-500.0,0.00021918,2]
[424960945,1781356272000,-388.0,0.00021918,2]
[424960947,1781356272000,-500.0,0.00021918,2]
[424960944,1781356272000,-500.0,0.00021918,2]
[424960946,1781356272000,-500.0,0.00021918,2]
[424961001,1781356273000,-50000.0,0.00022,3]
[424961000,1781356273000,-21111.0,0.00022,10]
[424960999,1781356273000,-352.61,0.00022,10]
[424960996,1781356273000,-2000.0,0.00022,30]
[424960998,1781356273000,-10000.0,0.00022,10]
[424960995,1781356273000,-1008.39422441,0.00022,10]
[424960994,1781356273000,-150.20066893,0.00021993,7]
[424960992,1781356273000,-1087.53579209,0.00021975,14]
[424960997,1781356273000,-1000.0,0.00022,60]
[424961002,1781356273000,-168.0,0.00022,10]
[424961007,1781356273000,-8320.0,0.00022,10]
[424961003,1781356273000,-7000.0,0.00022,10]
[424961005,1781356273000,-10000.0,0.00022,10]
[424961006,1781356273000,-10000.0,0.00022,10]
[424961010,1781356273000,-500.0,0.00022,3]
[424961011,1781356273000,-500.0,0.00022,3]
[424961009,1781356273000,-500.0,0.00022,3]
[424961008,1781356273000,-1000.0,0.00022,10]
[424961014,1781356273000,-500.0,0.00022,3]
[424961012,1781356273000,-500.0,0.00022,3]
[424960993,1781356273000,-206.0,0.00021976,2]
[424961004,1781356273000,-10000.0,0.00022,10]
[424960989,1781356273000,-150.0,0.00021918,2]
[424960975,1781356273000,-800.0,0.00021918,2]
[424960990,1781356273000,-1087.53579209,0.00021924,7]
[424961013,1781356273000,-500.0,0.00022,3]
[424960966,1781356273000,-3009.32,0.00021918,2]
[424960967,1781356273000,-500.0,0.00021918,10]
[424960968,1781356273000,-3009.32,0.00021918,2]
[424960970,1781356273000,-800.0,0.00021918,2]
[424960971,1781356273000,-800.0,0.00021918,2]
[424960972,1781356273000,-800.0,0.00021918,2]
[424960976,1781356273000,-805.64967789,0.00021918,2]
[424960974,1781356273000,-800.0,0.00021918,2]
[424960973,1781356273000,-800.0,0.00021918,2]
[424960988,1781356273000,-851.0,0.00021918,2]
[424960977,1781356273000,-800.0,0.00021918,2]
[424960981,1781356273000,-800.0,0.00021918,2]
[424960979,1781356273000,-800.0,0.00021918,2]
[424960978,1781356273000,-800.0,0.00021918,2]
[424960982,1781356273000,-800.0,0.00021918,2]
[424960984,1781356273000,-826.87228175,0.00021918,2]
[424960985,1781356273000,-1253.0,0.00021918,2]
[424960987,1781356273000,-2000.0,0.00021918,2]
[424960986,1781356273000,-800.0,0.00021918,2]
[424960983,1781356273000,-800.0,0.00021918,2]
[424960991,1781356273000,-411.12769919,0.00021952,2]
[424960980,1781356273000,-800.0,0.00021918,2]
[424961015,1781356273000,-500.0,0.00022,3]
[424960969,1781356273000,-800.0,0.00021918,2]
[424961018,1781356273000,-300.0,0.00022,2]
[424961045,1781356273000,-326.52297851,0.00022141,14]
[424961046,1781356273000,-334.19562712,0.00022143,2]
[424961043,1781356273000,-1087.53579209,0.00022129,14]
[424961047,1781356273000,-152.80013625,0.00022143,2]
[424961052,1781356273000,-2682.57183977,0.00022143,2]
[424961051,1781356273000,-153.05655402,0.00022143,2]
[424961044,1781356273000,-501.0,0.00022133,5]
[424961049,1781356273000,-151.0,0.00022143,2]
[424961050,1781356273000,-418.52236093,0.00022143,2]
[424961053,1781356273000,-3161.85,0.00022151,120]
[424961048,1781356273000,-284.01862642,0.00022143,2]
[424961054,1781356273000,-307.12475423,0.0002216,14]
[424961055,1781356273000,-1087.53579209,0.00022181,14]
[424961059,1781356273000,-851.0,0.00022203,2]
[424961058,1781356273000,-2000.0,0.00022203,2]
[424961060,1781356273000,-411.12769919,0.00022214,7]
[424961063,1781356273000,-290.66031845,0.0002227,14]
[424961062,1781356273000,-227.58725989,0.0002227,14]
[424961061,1781356273000,-1087.53579209,0.00022232,14]
[424961064,1781356273000,-326.52297851,0.0002227,14]
[424961065,1781356273000,-1087.53579209,0.00022283,14]
[424961016,1781356273000,-500.0,0.00022,3]
[424961057,1781356273000,-800.0,0.00022203,2]
[424961041,1781356273000,-1087.53579209,0.00022078,14]
[424961056,1781356273000,-1253.0,0.00022203,2]
[424961039,1781356273000,-307.12475423,0.00022031,7]
[424961038,1781356273000,-285.45799286,0.00022031,7]
[424961020,1781356273000,-1943.828552,0.00022,2]
[424961019,1781356273000,-318.321113,0.00022,2]
[424961017,1781356273000,-500.0,0.00022,3]
[424961021,1781356273000,-166.46,0.00022,2]
[424961025,1781356273000,-541.0,0.00022,2]
[424961027,1781356273000,-169.0,0.00022,2]
[424961023,1781356273000,-450.0,0.00022,2]
[424961024,1781356273000,-231.0,0.00022,2]
[424961031,1781356273000,-2590.0,0.00022,2]
[424961030,1781356273000,-923.0,0.00022,2]
[424961026,1781356273000,-299.0,0.00022,2]
[424961040,1781356273000,-250.0,0.00022037,2]
[424961022,1781356273000,-400.0,0.00022,12]
[424961028,1781356273000,-365.0,0.00022,2]
[424961033,1781356273000,-1011.0,0.00022,2]
[424961032,1781356273000,-274.0,0.00022,2]
[424961034,1781356273000,-841.56,0.00022,2]
[424961035,1781356273000,-360.0,0.00022,2]
[424961036,1781356273000,-326.52297851,0.00022012,14]
[424961037,1781356273000,-1087.53579209,0.00022027,14]
[424961029,1781356273000,-284.0,0.00022,2]
[424961042,1781356273000,-411.12769919,0.00022083,7]
[424961099,1781356274000,-174.91707852,0.00022595,120]
[424961100,1781356274000,-285.45799282,0.00022595,60]
[424961095,1781356274000,-307.12475423,0.00022548,30]
[424961097,1781356274000,-200.41906843,0.00022564,14]
[424961094,1781356274000,-285.45799286,0.00022548,14]
[424961102,1781356274000,-150.20066893,0.00022602,14]
[424961103,1781356274000,-168.5,0.00022603,2]
[424961098,1781356274000,-1087.53579209,0.00022591,30]
[424961101,1781356274000,-3671.19303059,0.000226,2]
[424961096,1781356274000,-250.99703325,0.00022564,14]
[424961105,1781356274000,-1087.53579209,0.00022643,30]
[424961117,1781356274000,-326.52297851,0.00022784,60]
[424961107,1781356274000,-326.52297851,0.00022655,60]
[424961108,1781356274000,-307.12475423,0.00022678,30]
[424961106,1781356274000,-3161.85,0.00022644,120]
[424961110,1781356274000,-151.0,0.0002269,2]
[424961111,1781356274000,-153.05655404,0.0002269,2]
[424961109,1781356274000,-284.01862642,0.0002269,2]
[424961112,1781356274000,-2781.82699784,0.00022691,2]
[424961114,1781356274000,-532.88591238,0.0002271,2]
[424961113,1781356274000,-1087.53579209,0.00022694,30]
[424961115,1781356274000,-411.12769919,0.00022739,14]
[424961093,1781356274000,-1087.53579209,0.0002254,14]
[424961104,1781356274000,-411.12769919,0.00022608,14]
[424961089,1781356274000,-290.66031845,0.00022494,120]
[424961071,1781356274000,-411.12769919,0.00022346,7]
[424961090,1781356274000,-163.26148925,0.00022494,120]
[424961067,1781356274000,-285.45799286,0.0002229,14]
[424961122,1781356274000,-501.0,0.00022822,6]
[424961068,1781356274000,-307.12475423,0.0002229,14]
[424961072,1781356274000,-1410.0,0.00022353,2]
[424961066,1781356274000,-350.0,0.00022289,4]
[424961070,1781356274000,-1087.53579209,0.00022335,14]
[424961069,1781356274000,-150.20066893,0.00022298,14]
[424961073,1781356274000,-1087.53579209,0.00022386,14]
[424961075,1781356274000,-1275.0,0.00022396,2]
[424961080,1781356274000,-174.91707852,0.00022419,14]
[424961077,1781356274000,-326.52297851,0.00022398,30]
[424961092,1781356274000,-326.52297851,0.00022527,30]
[424961076,1781356274000,-3161.85,0.00022397,120]
[424961079,1781356274000,-233.5188934,0.00022413,2]
[424961078,1781356274000,-211.096963,0.000224,7]
[424961081,1781356274000,-307.12475423,0.00022419,14]
[424961082,1781356274000,-1087.53579209,0.00022437,14]
[424961083,1781356274000,-501.91,0.00022466,2]
[424961085,1781356274000,-398.78,0.00022466,2]
[424961087,1781356274000,-411.12769919,0.00022477,7]
[424961086,1781356274000,-267.47,0.00022466,2]
[424961088,1781356274000,-1087.53579209,0.00022489,14]
[424961084,1781356274000,-468.24,0.00022466,2]
[424961091,1781356274000,-9837.98781745,0.000225,2]
[424961074,1781356274000,-1359.0,0.00022396,2]
[424961120,1781356274000,-285.45799286,0.00022807,30]
[424961118,1781356274000,-250.99703324,0.00022792,120]
[424961124,1781356274000,-1087.53579209,0.00022848,30]
[424961150,1781356274000,-360.0,0.00023,2]
[424961153,1781356274000,-150.0,0.00023014,2]
[424961149,1781356274000,-1011.0,0.00023,2]
[424961151,1781356274000,-411.12769919,0.00023002,30]
[424961157,1781356274000,-307.12475423,0.00023066,60]
[424961154,1781356274000,-326.52297851,0.00023041,120]
[424961158,1781356274000,-1087.53579209,0.00023105,30]
[424961159,1781356274000,-411.12769919,0.00023133,30]
[424961155,1781356274000,-1087.53579209,0.00023053,30]
[424961152,1781356274000,-1087.53579209,0.00023002,30]
[424961156,1781356274000,-285.45799286,0.00023066,30]
[424961161,1781356274000,-1087.53579209,0.00023156,30]
[424961170,1781356274000,-2884.75459676,0.00023239,2]
[424961162,1781356274000,-227.58725989,0.00023169,60]
[424961164,1781356274000,-167.83654203,0.00023197,60]
[424961165,1781356274000,-373.97700062,0.000232,2]
[424961166,1781356274000,-1087.53579209,0.00023207,60]
[424961167,1781356274000,-150.20066893,0.00023211,60]
[424961163,1781356274000,-307.12475423,0.00023195,120]
[424961171,1781356274000,-1087.53579209,0.00023259,60]
[424961169,1781356274000,-151.0,0.00023239,2]
[424961168,1781356274000,-284.01862642,0.00023239,2]
[424961173,1781356274000,-411.12769919,0.00023264,30]
[424961116,1781356274000,-1087.53579209,0.00022745,30]
[424961174,1781356274000,-155.362256,0.00023277,7]
[424961160,1781356274000,-3161.85,0.00023137,120]
[424961138,1781356274000,-300.0,0.00023,2]
[424961172,1781356274000,-150.0,0.0002326,21]
[424961147,1781356274000,-2590.0,0.00023,2]
[424961143,1781356274000,-169.0,0.00023,2]
[424961119,1781356274000,-1087.53579209,0.00022797,30]
[424961123,1781356274000,-198.8656702,0.00022831,120]
[424961125,1781356274000,-411.12769919,0.00022871,14]
[424961121,1781356274000,-307.12475423,0.00022807,60]
[424961127,1781356274000,-1087.53579209,0.00022899,30]
[424961129,1781356274000,-150.20066893,0.00022907,30]
[424961128,1781356274000,-639.26,0.000229,7]
[424961133,1781356274000,-500.0,0.00022946,7]
[424961130,1781356274000,-326.52297851,0.00022912,60]
[424961134,1781356274000,-1087.53579209,0.00022951,30]
[424961136,1781356274000,-285.0,0.00022997,2]
[424961126,1781356274000,-3161.85,0.0002289,120]
[424961132,1781356274000,-300.0,0.00022938,7]
[424961135,1781356274000,-155.362256,0.00022954,2]
[424961139,1781356274000,-1943.828552,0.00023,2]
[424961137,1781356274000,-1000.0,0.00023,14]
[424961142,1781356274000,-299.0,0.00023,2]
[424961145,1781356274000,-284.0,0.00023,2]
[424961146,1781356274000,-923.0,0.00023,2]
[424961148,1781356274000,-274.0,0.00023,2]
[424961140,1781356274000,-231.0,0.00023,2]
[424961141,1781356274000,-541.0,0.00023,2]
[424961144,1781356274000,-365.0,0.00023,2]
[424961131,1781356274000,-307.12475423,0.00022937,60]
[424961212,1781356275000,-3600.0,0.00024,2]
[424961210,1781356275000,-1041.28768269,0.00024,2]
[424961209,1781356275000,-500.0,0.00023944,2]
[424961206,1781356275000,-155.362256,0.00023921,14]
[424961202,1781356275000,-159.04669898,0.00023786,2]
[424961207,1781356275000,-500.0,0.00023944,2]
[424961204,1781356275000,-377.0,0.00023856,7]
[424961205,1781356275000,-3161.85,0.00023877,120]
[424961211,1781356275000,-10653.88005277,0.00024,14]
[424961208,1781356275000,-500.0,0.00023944,2]
[424961213,1781356275000,-1259.09199984,0.00024,2]
[424961226,1781356275000,-1011.0,0.00024,2]
[424961223,1781356275000,-923.0,0.00024,2]
[424961214,1781356275000,-1943.828552,0.00024,2]
[424961216,1781356275000,-500.0,0.00024,2]
[424961218,1781356275000,-541.0,0.00024,2]
[424961217,1781356275000,-231.0,0.00024,2]
[424961221,1781356275000,-365.0,0.00024,2]
[424961222,1781356275000,-284.0,0.00024,2]
[424961220,1781356275000,-169.0,0.00024,2]
[424961219,1781356275000,-299.0,0.00024,2]
[424961224,1781356275000,-2590.0,0.00024,2]
[424961198,1781356275000,-621.78829552,0.00023785,2]
[424961215,1781356275000,-11185.55922,0.00024,2]
[424961200,1781356275000,-151.0,0.00023785,2]
[424961185,1781356275000,-1087.53579209,0.00023464,60]
[424961201,1781356275000,-284.01862642,0.00023786,2]
[424961175,1781356275000,-160.0,0.00023287,2]
[424961225,1781356275000,-274.0,0.00024,2]
[424961176,1781356275000,-150.0,0.00023288,2]
[424961177,1781356275000,-1087.53579209,0.0002331,60]
[424961179,1781356275000,-350.0,0.00023338,4]
[424961178,1781356275000,-307.12475423,0.00023325,120]
[424961181,1781356275000,-3161.85,0.00023384,120]
[424961180,1781356275000,-1087.53579209,0.00023361,60]
[424961182,1781356275000,-411.12769919,0.00023396,30]
[424961183,1781356275000,-1087.53579209,0.00023413,60]
[424961184,1781356275000,-151.1501805,0.00023429,2]
[424961199,1781356275000,-775.4783256,0.00023785,2]
[424961186,1781356275000,-200.41906843,0.00023476,120]
[424961189,1781356275000,-411.12769919,0.00023527,60]
[424961187,1781356275000,-501.0,0.00023511,7]
[424961192,1781356275000,-2000.0,0.00023573,2]
[424961190,1781356275000,-1253.0,0.00023573,2]
[424961191,1781356275000,-800.0,0.00023573,2]
[424961193,1781356275000,-851.0,0.00023573,2]
[424961195,1781356275000,-3161.85,0.0002363,120]
[424961197,1781356275000,-276.28944246,0.00023783,2]
[424961196,1781356275000,-220.41324244,0.00023742,7]
[424961203,1781356275000,-2991.49051684,0.00023787,2]
[424961194,1781356275000,-155.362256,0.00023599,7]
[424961188,1781356275000,-150.20066893,0.00023516,120]
[424961228,1781356275000,-360.0,0.00024,2]
[424961282,1781356275000,-493.169011,0.00024658,2]
[424961229,1781356275000,-409.71,0.0002411,2]
[424961259,1781356275000,-352.115069,0.00024658,2]
[424961258,1781356275000,-1000.0,0.00024658,2]
[424961260,1781356275000,-352.115069,0.00024658,2]
[424961262,1781356275000,-352.115069,0.00024658,2]
[424961263,1781356275000,-352.115069,0.00024658,2]
[424961261,1781356275000,-352.115069,0.00024658,2]
[424961264,1781356275000,-352.115069,0.00024658,2]
[424961265,1781356275000,-352.115069,0.00024658,2]
[424961266,1781356275000,-352.115069,0.00024658,2]
[424961268,1781356275000,-352.115069,0.00024658,2]
[424961269,1781356275000,-352.115069,0.00024658,2]
[424961251,1781356275000,-352.115069,0.00024658,2]
[424961272,1781356275000,-493.169011,0.00024658,2]
[424961271,1781356275000,-817.38,0.00024658,2]
[424961277,1781356275000,-493.169011,0.00024658,2]
[424961275,1781356275000,-493.169011,0.00024658,2]
[424961279,1781356275000,-493.169011,0.00024658,2]
[424961276,1781356275000,-493.169011,0.00024658,2]
[424961270,1781356275000,-352.115066,0.00024658,2]
[424961280,1781356275000,-493.169011,0.00024658,2]